Cogmind - Beta 16 @@@ ROGUE MODE // 2025.11.11 @ 19:22:23 Player: CONM Result: Destroyed by H-77 Assassin with Coil Gun Performance ------------- Evolutions (7) 3500 Regions Visited (19) 3800 Robots Destroyed (134) 670 Value Destroyed (4396) 4396 Prototype IDs (18) 360 Alien Tech Used (0) 0 Bonus (1243) 1243 TOTAL SCORE: 13969 Bonus ------- High Alert Combat Kills 149 Met Warlord at Base 500 MAIN.C Attacked Warlord 500 Warlord Defense Kills 94 Cogmind --------- Core Integrity 0/1300 Matter 116/300 Energy 99/100 System Corruption 18% Temperature Cool (0) Movement Core (50) Location -3/Research Parts ------- > --- POWER (1) -------- (None) > --- PROPULSION (5) --- (None) > --- UTILITY (12) ----- Advanced Signal Interpreter Advanced Signal Interpreter Advanced Targeting Computer System Shield > --- WEAPON (3) ------- (None) > --- INVENTORY (5) ---- Microactuators Improved Recalibrator Peak State ------------ > --- POWER ------------ Fusion Compressor > --- PROPULSION ------- Centrium Wheel Centrium Wheel Centrium Wheel Centrium Wheel Improved Gyrokinetic Inverter > --- UTILITY ---------- Power Amplifier Medium Storage Unit Improved Signal Interpreter Advanced Signal Interpreter Advanced Signal Interpreter Improved Terrain Scanner Advanced Targeting Computer Improved Shield Generator Hacking Suite System Shield Minesniffer Drone Bay > --- WEAPON ----------- Vortex Rail Vortex Rail Force Lance > --- INVENTORY -------- Light Ion Engine Antimatter Reactor Advanced Weight Redist. System Microactuators Improved Cloaking Device Improved Recalibrator Quantum Rifle Neutron Cannon Micro-nuke Launcher [Rating: 114] Favorites ----------- Power Light Nuclear Core Engine Light Angular Momentum Engine Power Core Light Nuclear Core Reactor Antimatter Reactor Propulsion Light Treads Treads Light Treads Wheel Centrium Wheel Hover Unit Improved Gyrokinetic Inverter Flight Unit Nuclear Pulse Array Utility Medium Storage Unit Device Structural Scanner Storage Medium Storage Unit Processor Advanced Signal Interpreter Hackware Hacking Suite Protection Hardened Medium Armor Plating Weapon Improved Light Cannon Energy Gun Medium Laser Energy Cannon Heavy Particle Cannon Ballistic Gun Improved Assault Rifle Ballistic Cannon Improved Light Cannon Launcher Rocket Launcher Special Weapon Remote Datajack Slashing Weapon Katana Piercing Weapon Lance Build | -11 -10 -9 -9 -9 -8 -8 -7 -6 -5 -5 -5 -5 -4 -4 -4 -4 -4 -4 -3 ------- Run | Yrd Mat Mat Min Exi Min Mat Fac Fac Fac Upp Upp War Pro Fac Ext Cet Arc Hub Res Slots Evolved 14 | . . 2 . . . 2 2 2 2 . . . . 2 . . . . 2 Power . | . . . . . . . . . . . . . . . . . . . . Propulsion 3 | . . . . . . 1 . 1 . . . . . 1 . . . . . Utility 10 | . . 1 . . . 1 2 1 2 . . . . 1 . . . . 2 Weapon 1 | . . 1 . . . . . . . . . . . . . . . . . Parts Attached 142 | 7 8 8 . . . 13 24 21 12 2 1 6 . 6 5 . . 3 26 Power 17 | 1 . 3 . . . 2 1 2 1 . . . . 1 . . . 1 5 Engine 8 | 1 . 3 . . . . 1 . 1 . . . . . . . . 1 1 Core 6 | . . . . . . 2 . 2 . . . . . 1 . . . . 1 Reactor 3 | . . . . . . . . . . . . . . . . . . . 3 Propulsion 30 | 2 1 2 . . . 2 5 8 2 . . . . 1 1 . . . 6 Treads 11 | 2 1 2 . . . 2 3 1 . . . . . . . . . . . Leg . | . . . . . . . . . . . . . . . . . . . . Wheel 8 | . . . . . . . 2 2 . . . . . . . . . . 4 Hover 4 | . . . . . . . . 3 . . . . . . . . . . 1 Flight 7 | . . . . . . . . 2 2 . . . . 1 1 . . . 1 Utility 58 | 2 3 1 . . . 3 14 7 6 . 1 2 . 4 4 . . 1 10 Device 28 | 1 2 . . . . 1 7 3 1 . 1 1 . 2 2 . . . 7 Storage 6 | 1 1 . . . . 1 1 1 1 . . . . . . . . . . Processor 11 | . . 1 . . . . 2 2 3 . . . . 1 1 . . . 1 Hackware 7 | . . . . . . . 1 1 1 . . . . 1 . . . 1 2 Protection 6 | . . . . . . 1 3 . . . . 1 . . 1 . . . . Artifact . | . . . . . . . . . . . . . . . . . . . . Weapon 37 | 2 4 2 . . . 6 4 4 3 2 . 4 . . . . . 1 5 Energy Gun 11 | 2 . . . . . 1 3 . . 1 . 2 . . . . . . 2 Energy Cannon 7 | . . . . . . . . 2 3 . . 1 . . . . . . 1 Ballistic Gun 5 | . 2 1 . . . 2 . . . . . . . . . . . . . Ballistic Cannon 5 | . 2 . . . . 2 1 . . . . . . . . . . . . Launcher 5 | . . 1 . . . . . 2 . . . . . . . . . . 2 Special Weapon 1 | . . . . . . . . . . . . 1 . . . . . . . Impact Weapon . | . . . . . . . . . . . . . . . . . . . . Slashing Weapon 1 | . . . . . . 1 . . . . . . . . . . . . . Piercing Weapon 2 | . . . . . . . . . . 1 . . . . . . . 1 . Special Melee Weapon . | . . . . . . . . . . . . . . . . . . . . Unidentified Prototypes 8 | . . . . . . 1 2 . . . . 4 . 1 . . . . . Corrupted Parts 1 | . . . . . . . . . . . . . . 1 . . . . . System Corruption 3 | . . . . . . . . . . . . . . 3 . . . . . Parts Lost 78 | . . 1 . . . 3 13 20 . . 1 1 . 1 4 2 1 1 30 Power 8 | . . . . . . 1 . 2 . . . . . . . 1 . 1 3 Propulsion 22 | . . 1 . . . 1 5 5 . . . . . . 2 . . . 8 Utility 30 | . . . . . . . 6 6 . . 1 1 . 1 2 1 1 . 11 Weapon 18 | . . . . . . 1 2 7 . . . . . . . . . . 8 Highest Loss Streak 13 | . . 1 . . . 1 5 9 . . 1 1 . 1 3 2 3 1 13 To Critical Strikes . | . . . . . . . . . . . . . . . . . . . . Average Backups 10 | 3 8 9 10 10 10 12 16 11 4 7 9 8 9 8 8 10 10 9 7 Power . | . 1 1 3 3 2 1 1 . . . . . . . . . . . . Propulsion 2 | 1 2 4 4 4 4 2 2 3 1 1 1 1 2 1 . . . . . Utility 4 | . 3 2 2 2 2 4 8 6 1 2 2 2 3 2 3 4 4 4 3 Weapon 3 | . 1 . 1 1 1 3 5 1 2 4 5 4 4 4 4 6 6 5 2 Tool/Special . | . . . . . . . . . . . . . . . . . . . . Unused Backups 29 | . 2 1 . . . 4 2 9 1 . . 5 . . . . . . 5 Power 4 | . . . . . . 2 . 1 . . . . . . . . . . 1 Propulsion 8 | . . . . . . 1 1 5 . . . 1 . . . . . . . Utility 11 | . . 1 . . . . 1 3 1 . . 2 . . . . . . 3 Weapon 6 | . 2 . . . . 1 . . . . . 2 . . . . . . 1 Tool/Special . | . . . . . . . . . . . . . . . . . . . . Average Slot Usage (%) 78 | . 100 92 100 100 100 94 85 72 43 60 63 58 47 56 73 53 45 50 68 Engine 5 | . 14 11 11 11 11 3 5 . 4 5 5 5 5 2 . . . 2 1 Core 1 | . . . . . . 4 1 4 . . . . . 2 5 4 . . . Treads 12 | . 28 21 22 22 22 26 19 2 . . . . . . . . . . . Wheel 1 | . . . . . . . 1 1 . . . . . . . . . . 7 Flight 3 | . . . . . . . . 5 10 11 11 11 11 12 14 10 10 10 4 Device 11 | . 14 11 11 11 11 10 14 13 9 11 11 6 5 9 13 2 . . 9 Storage 7 | . 14 11 11 11 11 9 7 5 2 5 5 5 5 5 5 5 5 5 3 Processor 11 | . . 9 11 11 11 9 9 14 8 17 17 16 11 13 19 15 15 15 15 Hackware 2 | . . . . . . . . 3 1 5 4 . . 1 5 5 5 8 11 Protection 2 | . . . . . . 7 7 . . . . . . 2 5 10 8 5 1 Energy Gun 2 | . 18 . . . . 3 2 2 . . . . . . . . . . 3 Ballistic Gun 1 | . 9 2 . . . 4 . . . . . . . . . . . . . Ballistic Cannon 6 | . . 22 22 22 22 10 9 . . . . . . . . . . . . Launcher 1 | . . 4 11 11 11 1 . 3 . . . . . . . . . . . Slashing Weapon 1 | . . . . . . 3 2 2 . . . . . . . . . . . Piercing Weapon 1 | . . . . . . . . . . 1 5 5 5 5 4 . . 2 4 Peak Build Rating 114 | 7 10 14 14 14 14 26 42 50 62 64 71 72 53 77 85 66 53 64 114 Average Rating 40 | 5 7 11 14 14 14 23 35 37 50 59 63 62 53 65 81 58 51 57 80 On Entrance 36 | . 7 10 14 14 14 14 26 34 1 57 64 61 53 53 77 66 53 50 58 Avg Prop Armor Cover (%) 6 | . . . . . . . . 4 . . . . . . . . . . 10 Naked Turns 22 | . . . . . . . . 15 7 . . . . . . . . . . Heaviest Build 90 | 13 22 30 30 30 30 48 90 75 29 25 24 28 23 26 32 24 16 26 66 Greatest Support 64 | 40 40 40 40 40 40 60 62 40 26 26 26 26 26 32 32 26 26 26 64 Greatest Overweight (x) 24 | . . 1 . . . 1 6 24 1 . . 1 . . 1 . . . 11 Average Overweight (x) . | . . . . . . . 1 1 . . . . . . . . . . . Largest Inventory Capacity 20 | 8 10 10 10 10 10 15 20 20 10 10 10 10 10 10 10 10 10 10 10 Average Capacity 12 | 7 8 10 10 10 10 12 18 15 7 10 10 10 10 10 10 10 10 10 8 Most Carried 20 | 5 10 10 10 10 10 15 20 16 7 10 10 10 10 10 10 10 10 10 10 Average Carried 10 | 3 8 9 10 10 9 12 16 11 5 8 9 9 10 9 9 10 10 9 7 Final Capacity 20 | 8 10 10 10 10 10 15 20 5 10 10 10 10 10 10 10 10 10 10 5 Final Carried 15 | 4 10 10 10 10 10 15 15 5 7 10 10 10 10 9 10 10 10 9 2 Class Distribution -------------------- 54% | Mutant 21% | Gunner 11% | Hacker-Mutant 3% | Scavenger-Gunner 3% | Sprinter Dominant Class ---------------- Mutant | -10/Materials Gunner | -9/Materials Gunner | -9/Mines Gunner | -9/Exiles Gunner | -8/Mines Mutant | -8/Materials Mutant | -7/Factory Mutant | -6/Factory Mutant | -5/Factory Mutant | -5/Upper Caves Mutant | -5/Upper Caves Mutant | -5/Warlord Mutant | -4/Proximity Caves Mutant | -4/Factory Sprinter | -4/Extension Mutant | -4/Cetus Mutant | -4/Archives Hacker-Mutant | -4/Hub_04(d) Hacker-Mutant | -3/Research Resources | -11 -10 -9 -9 -9 -8 -8 -7 -6 -5 -5 -5 -5 -4 -4 -4 -4 -4 -4 -3 ----------- Run | Yrd Mat Mat Min Exi Min Mat Fac Fac Fac Upp Upp War Pro Fac Ext Cet Arc Hub Res Matter Collected 3693 | 270 122 307 . . 145 567 1257 319 179 70 10 65 . 103 5 . . . 274 Remotely . | . . . . . . . . . . . . . . . . . . . . Salvage Created 4399 | 140 264 556 . . 50 484 1116 1068 . . . 54 . 158 . . . 118 391 Parts 216 | 5 14 44 . . 6 23 57 30 . . . . . 3 . . . 2 32 Haulers Intercepted 13 | . 2 1 . . . 2 2 3 . . . . . 1 . . . 1 1 Recyclers Shooed 5 | . . . . . . 1 2 2 . . . . . . . . . . . Parts Field Recycled 2 | . . . . . . . 2 . . . . . . . . . . . . Retrieved Matter 27 | . . . . . . . 27 . . . . . . . . . . . . Parts Self-Destructed 2 | . . . . . . . . . . . 2 . . . . . . . . Prevented 2 | . . . . . . . . . . . 2 . . . . . . . . Parts Restored . | . . . . . . . . . . . . . . . . . . . . Kills | -11 -10 -9 -9 -9 -8 -8 -7 -6 -5 -5 -5 -5 -4 -4 -4 -4 -4 -4 -3 ------- Run | Yrd Mat Mat Min Exi Min Mat Fac Fac Fac Upp Upp War Pro Fac Ext Cet Arc Hub Res Combat Hostiles Destroyed 84 | . 4 20 . . 3 14 25 11 . . . 1 . . . . . . 6 Melee 2 | . . . . . . . . 1 . . . 1 . . . . . . . Guns 16 | . 4 . . . . 5 3 2 . . . . . . . . . . 2 Cannons 56 | . . 18 . . 3 9 22 2 . . . . . . . . . . 2 AOE 10 | . . 2 . . . . . 6 . . . . . . . . . . 2 Classes Destroyed 14 | 2 2 7 . . . 1 1 . . . . 1 . . . . . . . Worker 9 | . . 1 . . . 1 6 . . . . . . . . . . . 1 Builder 11 | . . 2 . . . 1 2 1 . . . . . 2 . . . . 3 Tunneler 5 | 3 . . . . 2 . . . . . . . . . . . . . . Hauler 13 | . 2 1 . . . 2 2 3 . . . . . 1 . . . 1 1 Recycler 4 | 1 . . . . . . 1 2 . . . . . . . . . . . Operator 5 | . . 1 . . . 1 1 . . . . . . . . . . . 2 Watcher 3 | . . 2 . . . . 1 . . . . . . . . . . . . Swarmer 15 | . . 6 . . 3 4 2 . . . . . . . . . . . . Grunt 39 | . 4 10 . . . 5 12 8 . . . . . . . . . . . Duelist 3 | . . 2 . . . . . 1 . . . . . . . . . . . Protector 1 | . . . . . . . . . . . . 1 . . . . . . . Sentry 10 | . . 2 . . . 3 5 . . . . . . . . . . . . Hunter 3 | . . . . . . 2 1 . . . . . . . . . . . . Programmer 13 | . . . . . . . 5 2 . . . . . . . . . . 6 Best Kill Streak 11 | 3 1 5 . . 5 5 11 4 . . . 1 . 2 . . . 1 6 Combat Bots Only 5 | . 1 4 . . 3 5 4 4 . . . 1 . . . . . . 4 Max Kills in Single Turn 4 | 1 1 2 . . 1 1 4 2 . . . 1 . 1 . . . 1 2 Gunslinging . | . . . . . . . . . . . . . . . . . . . . Exploded 2 | . . 1 . . . . . 2 . . . . . . . . . . 1 Melee 1 | . . . . . . . . 1 . . . 1 . . . . . . . Uniques/NPCs Destroyed . | . . . . . . . . . . . . . . . . . . . . Combat | -11 -10 -9 -9 -9 -8 -8 -7 -6 -5 -5 -5 -5 -4 -4 -4 -4 -4 -4 -3 -------- Run | Yrd Mat Mat Min Exi Min Mat Fac Fac Fac Upp Upp War Pro Fac Ext Cet Arc Hub Res Hostile Shots Fired 1072 | . 32 66 . . 25 108 271 143 3 . 28 6 . 15 42 41 15 14 263 Missed 377 | . 9 19 . . 9 22 92 42 2 . 15 2 . 12 29 21 10 8 85 Hits 695 | . 23 47 . . 16 86 179 101 1 . 13 4 . 3 13 20 5 6 178 Melee 10 | . . 3 . . . . . 5 . . . 2 . . . . . . . Projectile 685 | . 23 44 . . 16 86 179 96 1 . 13 2 . 3 13 20 5 6 178 Critical Strikes 38 | . . 1 . . . 3 4 3 . . . 2 . . . 5 . 1 19 Part Disruptions 1 | . . . . . . . . . . . . . . . . . . . 1 Damage Taken 12125 | . 229 561 . . 137 1175 2165 2091 68 . 162 179 . 60 312 496 129 126 4235 Core 3053 | . 40 103 . . . 250 145 756 16 . 63 57 . . 53 195 55 . 1320 Absorbed by Shields 112 | . . . . . . . 112 . . . . . . . . . . . . Redirected to Shielding 106 | . . . . . . . . . . . . . . . . 91 15 . . Ignored by Resistances 67 | . . . . . . . . 28 5 . 34 . . . . . . . . Regen/Repaired (Parts) 5 | . . . . . . . . . . . . 5 . . . . . . . Core Remaining (%) 70 | 100 84 . . . 74 54 79 11 . . . . 86 . . . . 73 . Volleys Fired 328 | 12 28 46 . . 7 63 101 47 1 . . 1 . . . . . . 22 Largest 3 | 2 2 3 . . 2 3 3 3 2 . . 1 . . . . . . 3 Hottest 229 | 100 100 86 . . 66 125 199 224 162 . . 5 . . . . . . 229 Shots Fired 575 | 24 56 94 . . 14 120 157 78 2 . . 1 . . . . . . 29 Gun 229 | 24 56 8 . . . 62 33 31 . . . . . . . . . . 15 Cannon 321 | . . 83 . . 14 58 124 35 2 . . . . . . . . . 5 Launcher 24 | . . 3 . . . . . 12 . . . . . . . . . . 9 Special 1 | . . . . . . . . . . . . 1 . . . . . . . Kinetic 330 | . 6 91 . . 14 95 124 . . . . . . . . . . . . Thermal 190 | 24 50 . . . . 25 20 61 . . . . . . . . . . 10 Explosive 24 | . . 3 . . . . . 12 . . . . . . . . . . 9 Electromagnetic 20 | . . . . . . . 13 5 2 . . . . . . . . . . Entropic 10 | . . . . . . . . . . . . . . . . . . . 10 Robot Hit Streak 37 | 7 7 14 . . 4 15 20 37 . . . 4 . . . . . . 11 Robot Miss Streak 4 | 3 4 3 . . 3 3 3 3 . . . . . . . . . . 3 Penetration Max 1 | . . . . . . . 1 . . . . . . . . . . . 1 Secondary Targets . | . . . . . . . . . . . . . . . . . . . . Shots Hit Robots 428 | 14 38 54 . . 8 90 113 70 . . . 2 . 4 . . . 1 34 Core Hits 192 | 5 11 31 . . 5 31 48 37 . . . 1 . 2 . . . 1 20 Critical Kills 1 | . . . . . . . . 1 . . . . . . . . . . . Critical Parts Destroyed 2 | . . . . . . . . . . . . . . . . . . . 2 Critical Strikes 27 | 4 2 2 . . . 5 9 1 . . . . . 1 . . . 1 2 Burn 7 | 4 2 . . . . . 1 . . . . . . . . . . . . Meltdown 1 | . . . . . . . . 1 . . . . . . . . . . . Blast 15 | . . 2 . . . 5 8 . . . . . . . . . . . . Impale 2 | . . . . . . . . . . . . . . 1 . . . 1 . Detonate 2 | . . . . . . . . . . . . . . . . . . . 2 Melee Attacks 62 | . . . . . . 2 2 14 . . . 2 . 9 . . . 1 32 Impact . | . . . . . . . . . . . . . . . . . . . . Slashing 18 | . . . . . . 2 2 14 . . . . . . . . . . . Piercing 44 | . . . . . . . . . . . . 2 . 9 . . . 1 32 Sneak Attacks 11 | . . . . . . 1 . 1 . . . . . 3 . . . 1 5 Combat Hostiles . | . . . . . . . . . . . . . . . . . . . . Follow-up Attacks . | . . . . . . . . . . . . . . . . . . . . Damage Inflicted 14184 | 175 478 1439 . . 162 1994 4346 2520 . . . 38 . 334 . . . 43 2655 Guns 2921 | 175 478 40 . . . 653 551 588 . . . . . . . . . . 436 Cannons 7088 | . . 1153 . . 162 1270 3573 837 . . . . . . . . . . 93 Explosions 2496 | . . 246 . . . . 215 917 . . . . . . . . . . 1118 Melee 1653 | . . . . . . 60 . 178 . . . 38 . 334 . . . 43 1000 Ramming 26 | . . . . . . 11 7 . . . . . . . . . . . 8 Kinetic 6623 | . 64 1193 . . 162 1631 3573 . . . . . . . . . . . . Thermal 3248 | 175 414 . . . . 292 634 1330 . . . . . . . . . . 403 Explosive 1881 | . . 246 . . . . . 761 . . . . . . . . . . 874 Electromagnetic 383 | . . . . . . . 132 251 . . . . . . . . . . . Impact . | . . . . . . . . . . . . . . . . . . . . Slashing 238 | . . . . . . 60 . 178 . . . . . . . . . . . Piercing 1415 | . . . . . . . . . . . . 38 . 334 . . . 43 1000 Entropic 370 | . . . . . . . . . . . . . . . . . . . 370 Highest Corruption 18 | . 1 . . . . . 9 3 . . . 5 5 5 5 6 6 6 18 Average Corruption 5 | . 1 . . . . . 6 1 . . . 5 5 4 5 5 6 6 10 Corruption Purged . | . . . . . . . . . . . . . . . . . . . . Corruption Blocked . | . . . . . . . . . . . . . . . . . . . . Effects 92 | . . . . . . . 36 8 . . . 1 3 2 7 2 . 1 32 Message Errors 16 | . . . . . . . 5 2 . . . . . . 2 1 . . 6 Matter Fused 27 | . . . . . . . 10 1 . . . 1 3 1 1 . . . 10 Heat Flow Errors 10 | . . . . . . . 1 2 . . . . . . 2 . . 1 4 Energy Discharges 10 | . . . . . . . 5 . . . . . . . 2 1 . . 2 Parts Fused 1 | . . . . . . . . . . . . . . . . . . . 1 Data Loss (minor) 14 | . . . . . . . 8 2 . . . . . . . . . . 4 Data Loss (major) 7 | . . . . . . . 4 . . . . . . 1 . . . . 2 Misfires 3 | . . . . . . . 3 . . . . . . . . . . . . Alerts 2 | . . . . . . . . 1 . . . . . . . . . . 1 Misdirections 2 | . . . . . . . . . . . . . . . . . . . 2 Overload Shots . | . . . . . . . . . . . . . . . . . . . . Overflow Damage 1033 | . . 32 . . 2 23 312 224 . . . . . 232 . . . . 208 Projectiles 281 | . . 32 . . 2 23 224 . . . . . . . . . . . . Explosions 378 | . . . . . . . 88 176 . . . . . . . . . . 114 Melee 374 | . . . . . . . . 48 . . . . . 232 . . . . 94 Knockbacks 52 | . . 15 . . 2 10 25 . . . . . . . . . . . . Impact . | . . . . . . . . . . . . . . . . . . . . Kinetic 48 | . . 14 . . 2 9 23 . . . . . . . . . . . . Secondary 4 | . . 1 . . . 1 2 . . . . . . . . . . . . Self-Inflicted Damage 371 | . . 41 . . . . 55 101 . . . . . . . . . . 174 Shots 8 | . . 1 . . . . 1 2 . . . . . . . . . . 4 Rammed 12 | . . . . . . 6 3 . . . . . . . . . . . 3 Targets Rammed 12 | . . . . . . 6 3 . . . . . . . . . . . 3 Kicked . | . . . . . . . . . . . . . . . . . . . . Crushed . | . . . . . . . . . . . . . . . . . . . . Highest Temperature 381 | 351 381 75 . . . 267 358 162 75 . . . . . 211 9 . 92 335 Average Temperature 89 | 141 119 20 . . . 70 102 76 43 . . . . . 99 9 . 46 119 Received Heat Transfer 2723 | . 102 153 . . . 513 626 546 . . 12 18 . . 72 112 9 12 548 Effects 6 | . 2 . . . . . 4 . . . . . . . . . . . . Shutdowns 2 | . 1 . . . . . 1 . . . . . . . . . . . . Energy Bleed 1 | . . . . . . . 1 . . . . . . . . . . . . Interference 1 | . . . . . . . 1 . . . . . . . . . . . . Matter Decay 1 | . 1 . . . . . . . . . . . . . . . . . . Short Circuit 1 | . . . . . . . 1 . . . . . . . . . . . . Siege Activations . | . . . . . . . . . . . . . . . . . . . . Martial Activations . | . . . . . . . . . . . . . . . . . . . . Shielding Activations . | . . . . . . . . . . . . . . . . . . . . Robots Disrupted 1 | . . . . . . . . 1 . . . . . . . . . . . Combat Hostiles . | . . . . . . . . . . . . . . . . . . . . Robots Corrupted 1 | . . . . . . . . 1 . . . . . . . . . . . Combat Hostiles . | . . . . . . . . . . . . . . . . . . . . Parts Fried 3 | . . . . . . . 1 2 . . . . . . . . . . . Impact Corruptions . | . . . . . . . . . . . . . . . . . . . . Robots Melted 1 | . . . . . . . . 1 . . . . . . . . . . . Combat Hostiles . | . . . . . . . . . . . . . . . . . . . . Parts Melted 21 | 3 7 . . . . 2 3 4 . . . 1 . . . . . . 1 Heat Transferred 6382 | 814 1369 . . . . 740 1020 2265 . . . . . . . . . . 174 Parts Sabotaged . | . . . . . . . . . . . . . . . . . . . . Parts Stolen . | . . . . . . . . . . . . . . . . . . . . Parts Stripped . | . . . . . . . . . . . . . . . . . . . . Power Chain Reactions . | . . . . . . . . . . . . . . . . . . . . Alert | -11 -10 -9 -9 -9 -8 -8 -7 -6 -5 -5 -5 -5 -4 -4 -4 -4 -4 -4 -3 ------- Run | Yrd Mat Mat Min Exi Min Mat Fac Fac Fac Upp Upp War Pro Fac Ext Cet Arc Hub Res Maximum Alert Level 2 | . . 1 . . . . 2 1 . . . . . . . . . . . Low Security (%) 77 | 100 100 57 100 . 100 100 28 66 100 . . . . 100 100 100 100 100 100 Level 1 16 | . . 42 . . . . 40 33 . . . . . . . . . . . Level 2 6 | . . . . . . . 30 . . . . . . . . . . . . Level 3 . | . . . . . . . . . . . . . . . . . . . . Level 4 . | . . . . . . . . . . . . . . . . . . . . Level 5 . | . . . . . . . . . . . . . . . . . . . . High Security . | . . . . . . . . . . . . . . . . . . . . Max Security . | . . . . . . . . . . . . . . . . . . . . Peak Influence 630 | 10 40 355 125 . 66 147 630 301 100 . . . . 68 60 28 . 15 185 Initial 301 | . . . 125 . . . . 301 100 . . . . . 32 28 . . . Average 120 | 1 5 181 106 . 11 58 302 142 28 . . . . 19 11 12 . 4 74 Influence Increases 4303 | 20 138 600 . . 81 461 1201 575 45 . . 20 . 151 90 . . 22 899 Destroy 0b10 Robot/C 1660 | . 80 400 . . 60 280 500 220 . . . . . . . . . . 120 Destroy 0b10 Robot/NC 255 | 20 10 35 . . 10 25 65 30 . . . 5 . 15 . . . 5 35 Destroy Leader 440 | . 24 86 . . 10 84 166 34 . . . . . 2 . . . 2 32 Successful Hack 119 | . 8 7 . . . 33 19 18 . . . . . 34 . . . . . Disable Machine 570 | . . 15 . . . . 300 210 30 . . . . . . . . . 15 Destroy Structure 344 | . 1 27 . . 1 9 46 48 . . . . . 10 . . . . 202 Partial Spotted 60 | . . . . . . . . . 15 . . . . 15 . . . 15 15 Lose Combat Pursuer 855 | . 15 30 . . . 30 105 15 . . . 15 . 75 90 . . . 480 Influence Decreases 4122 | 20 138 278 237 85 81 459 586 986 251 . . 20 . 83 108 50 . 22 718 Entered New Map 764 | . . . 197 85 . . 2 316 106 . . . . . 36 22 . . . Time Decay 2676 | 20 138 268 40 . 81 429 454 475 145 . . 13 . 81 62 10 . 22 438 Lost Part 672 | . . 10 . . . 30 130 195 . . . 7 . 2 10 18 . . 270 Lost Ally 10 | . . . . . . . . . . . . . . . . . . . 10 Squads Dispatched 42 | . 2 2 . . . 3 12 4 1 . . . . 2 1 2 . 1 12 Investigation 10 | . 1 1 . . . 1 2 1 . . . . . 1 . 2 . . 1 Extermination 13 | . . . . . . . 4 3 1 . . . . 1 . . . . 4 Reinforcement 13 | . 1 1 . . . 2 3 . . . . . . . 1 . . 1 4 Assault . | . . . . . . . . . . . . . . . . . . . . Garrison 6 | . . . . . . . 3 . . . . . . . . . . . 3 Intercept . | . . . . . . . . . . . . . . . . . . . . Searches Triggered . | . . . . . . . . . . . . . . . . . . . . Construction Impeded 4 | . . . . . . 1 1 . . . . . . . . . . . 2 Haulers Reinforced 1 | . . . . . . . 1 . . . . . . . . . . . . Active Scanning Responses . | . . . . . . . . . . . . . . . . . . . . Cargo Convoy Interrupts . | . . . . . . . . . . . . . . . . . . . . Stealth | -11 -10 -9 -9 -9 -8 -8 -7 -6 -5 -5 -5 -5 -4 -4 -4 -4 -4 -4 -3 --------- Run | Yrd Mat Mat Min Exi Min Mat Fac Fac Fac Upp Upp War Pro Fac Ext Cet Arc Hub Res Distress Signals 16 | . . 6 . . . 3 1 1 . . . . . 1 1 1 . 1 1 Communications Jammed . | . . . . . . . . . . . . . . . . . . . . Distress Signals . | . . . . . . . . . . . . . . . . . . . . Times Spotted 272 | . 12 34 . . 6 32 39 25 5 . 1 27 . 10 11 11 4 8 47 Peak Tracking Total 16 | . 3 7 . . 3 8 4 9 3 . 1 9 . 6 9 11 4 7 16 Tactical Retreats 25 | . 1 2 . . . 2 6 1 . . . 1 . 3 2 . . . 7 Traps | -11 -10 -9 -9 -9 -8 -8 -7 -6 -5 -5 -5 -5 -4 -4 -4 -4 -4 -4 -3 ------- Run | Yrd Mat Mat Min Exi Min Mat Fac Fac Fac Upp Upp War Pro Fac Ext Cet Arc Hub Res Traps Triggered 21 | . 2 1 . . . 1 6 5 1 . . . . 1 3 . . . 1 Indirectly 1 | . . . . . . . . 1 . . . . . . . . . . . Trap Hack Attempts . | . . . . . . . . . . . . . . . . . . . . Triggered . | . . . . . . . . . . . . . . . . . . . . Disarmed . | . . . . . . . . . . . . . . . . . . . . Reprogrammed . | . . . . . . . . . . . . . . . . . . . . Reused . | . . . . . . . . . . . . . . . . . . . . Traps Extracted . | . . . . . . . . . . . . . . . . . . . . Installed . | . . . . . . . . . . . . . . . . . . . . Triggered . | . . . . . . . . . . . . . . . . . . . . Machines | -11 -10 -9 -9 -9 -8 -8 -7 -6 -5 -5 -5 -5 -4 -4 -4 -4 -4 -4 -3 ---------- Run | Yrd Mat Mat Min Exi Min Mat Fac Fac Fac Upp Upp War Pro Fac Ext Cet Arc Hub Res Machines Disabled 38 | . . 1 . . . . 20 14 2 . . . . . . . . . 1 Max in Single Turn 15 | . . 1 . . . . 15 5 2 . . . . . . . . . 1 Garrison Access 2 | . . . . . . 1 . . . . . . . 1 . . . . . Machines Repaired . | . . . . . . . . . . . . . . . . . . . . Machines Dismantled . | . . . . . . . . . . . . . . . . . . . . Machines Sabotaged . | . . . . . . . . . . . . . . . . . . . . Overloaded Fab Kills . | . . . . . . . . . . . . . . . . . . . . Hacking | -11 -10 -9 -9 -9 -8 -8 -7 -6 -5 -5 -5 -5 -4 -4 -4 -4 -4 -4 -3 --------- Run | Yrd Mat Mat Min Exi Min Mat Fac Fac Fac Upp Upp War Pro Fac Ext Cet Arc Hub Res Machines Accessed 54 | . 3 2 . 1 . 9 3 7 7 . . 7 . 7 . 3 . 2 3 Terminals 32 | . 2 2 . . . 7 2 5 3 . . . . 4 . 3 . 2 2 Fabricators 3 | . . . . . . . . . 2 . . . . 1 . . . . . Repair Stations . | . . . . . . . . . . . . . . . . . . . . Recycling Units 4 | . 1 . . . . . . 1 2 . . . . . . . . . . Scanalyzers 5 | . . . . . . 1 1 1 . . . . . 1 . . . . 1 Garrison Access 2 | . . . . . . 1 . . . . . . . 1 . . . . . Total Hacks 119 | . 7 3 . 4 . 16 8 22 12 . . 18 . 11 . 9 . 2 7 Successful 62 | . 3 1 . 4 . 11 4 9 2 . . 18 . 6 . 1 . . 3 Failed 53 | . 4 2 . . . 4 4 12 10 . . . . 4 . 8 . 2 3 Catastrophic 11 | . . . . . . . 1 2 5 . . . . . . 1 . 1 1 Database Lockouts 4 | . . . . . . 1 . 1 . . . . . 1 . . . . 1 Manual 36 | . . 1 . . . 7 4 11 7 . . . . 2 . . 1 . 3 Terminals 71 | . 6 3 . . . 12 6 17 7 . . . . 6 . 9 . 2 3 Fabricators 3 | . . . . . . . . . 2 . . . . 1 . . . . . Repair Stations . | . . . . . . . . . . . . . . . . . . . . Recycling Units 7 | . 1 . . . . . . 3 3 . . . . . . . . . . Scanalyzers 13 | . . . . . . 3 2 2 . . . . . 2 . . . . 4 Garrison Access 3 | . . . . . . 1 . . . . . . . 2 . . . . . Terminal Hacks 39 | . 2 1 . 4 . 6 1 3 . . . 18 . 3 . 1 . . . Record 19 | . . . . 4 . 1 1 1 . . . 11 . . . 1 . . . Robot Analysis 2 | . 1 . . . . 1 . . . . . . . . . . . . . Prototype ID Bank 5 | . . . . . . . . . . . . 5 . . . . . . . Open Door 3 | . . . . . . . . . . . . 2 . 1 . . . . . Open DSF 1 | . . . . . . . . 1 . . . . . . . . . . . Level Access Points 2 | . 1 . . . . 1 . . . . . . . . . . . . . Branch Access Points 1 | . . 1 . . . . . . . . . . . . . . . . . Emergency Access Points 1 | . . . . . . 1 . . . . . . . . . . . . . Fabricator Index 1 | . . . . . . . . . . . . . . 1 . . . . . Alert Level 1 | . . . . . . . . 1 . . . . . . . . . . . Maintenance Status 1 | . . . . . . . . . . . . . . 1 . . . . . Hauler Manifests 1 | . . . . . . 1 . . . . . . . . . . . . . Registered Components 1 | . . . . . . 1 . . . . . . . . . . . . . Fabricator Hacks . | . . . . . . . . . . . . . . . . . . . . Repair Station Hacks . | . . . . . . . . . . . . . . . . . . . . Recycling Unit Hacks 4 | . 1 . . . . . . 2 1 . . . . . . . . . . Report Inventory 3 | . 1 . . . . . . 1 1 . . . . . . . . . . Retrieve Components 1 | . . . . . . . . 1 . . . . . . . . . . . Scanalyzer 8 | . . . . . . 2 1 1 . . . . . 1 . . . . 3 Retrieve Study 8 | . . . . . . 2 1 1 . . . . . 1 . . . . 3 Garrison Access Hacks 2 | . . . . . . 1 . . . . . . . 1 . . . . . Seal Access 2 | . . . . . . 1 . . . . . . . 1 . . . . . Unauthorized Hacks 9 | . . . . . . 2 2 3 1 . . . . 1 . . . . . Terminals 9 | . . . . . . 2 2 3 1 . . . . 1 . . . . . Botnet 9 | . . . . . . 2 2 3 1 . . . . 1 . . . . . Fabricators . | . . . . . . . . . . . . . . . . . . . . Repair Stations . | . . . . . . . . . . . . . . . . . . . . Recycling Units . | . . . . . . . . . . . . . . . . . . . . Scanalyzers . | . . . . . . . . . . . . . . . . . . . . Garrison Access . | . . . . . . . . . . . . . . . . . . . . Data Cores Recovered 2 | . . 1 . . . 1 . . . . . . . . . . . . . Used 1 | . . . . . . 1 . . . . . . . . . . . . . Hacking Detections 34 | . 1 2 . . . 5 3 4 7 . . . . 5 . 3 . 2 2 Full Trace Events 3 | . . . . . . . . 1 . . . . . . . 2 . . . Feedback Events 1 | . . . . . . . . . . . . . . . . 1 . . . Corruption 1 | . . . . . . . . . . . . . . . . 1 . . . Feedback Blocked . | . . . . . . . . . . . . . . . . . . . . Robot Schematics Acquired . | . . . . . . . . . . . . . . . . . . . . Robots Built . | . . . . . . . . . . . . . . . . . . . . Authchips . | . . . . . . . . . . . . . . . . . . . . Time . | . . . . . . . . . . . . . . . . . . . . Total Robot Build Rating . | . . . . . . . . . . . . . . . . . . . . Part Schematics Acquired . | . . . . . . . . . . . . . . . . . . . . Parts Built . | . . . . . . . . . . . . . . . . . . . . Authchips . | . . . . . . . . . . . . . . . . . . . . Time . | . . . . . . . . . . . . . . . . . . . . Total Part Build Rating . | . . . . . . . . . . . . . . . . . . . . Part Studies Acquired 8 | . . . . . . 2 1 1 . . . . . 1 . . . . 3 Parts Repaired . | . . . . . . . . . . . . . . . . . . . . Time . | . . . . . . . . . . . . . . . . . . . . Parts Recycled . | . . . . . . . . . . . . . . . . . . . . Recycled Matter . | . . . . . . . . . . . . . . . . . . . . Retrieved Matter . | . . . . . . . . . . . . . . . . . . . . Retrieved Components 9 | . . . . . . . . 9 . . . . . . . . . . . Parts Scanalyzed . | . . . . . . . . . . . . . . . . . . . . Part Schematics Acquired . | . . . . . . . . . . . . . . . . . . . . Parts Damaged . | . . . . . . . . . . . . . . . . . . . . Bothacking | -11 -10 -9 -9 -9 -8 -8 -7 -6 -5 -5 -5 -5 -4 -4 -4 -4 -4 -4 -3 ------------ Run | Yrd Mat Mat Min Exi Min Mat Fac Fac Fac Upp Upp War Pro Fac Ext Cet Arc Hub Res Used RIF Installer . | . . . . . . . . . . . . . . . . . . . . Robots Hacked . | . . . . . . . . . . . . . . . . . . . . Non-combat . | . . . . . . . . . . . . . . . . . . . . Combat . | . . . . . . . . . . . . . . . . . . . . Robot Hacks Applied . | . . . . . . . . . . . . . . . . . . . . Relay Couplers Released 3 | . . . . . . . 3 . . . . . . . . . . . . Programmers 3 | . . . . . . . 3 . . . . . . . . . . . . Fabnet Peak Effective % . | . . . . . . . . . . . . . . . . . . . . Robots Rewired . | . . . . . . . . . . . . . . . . . . . . Allies Hacked . | . . . . . . . . . . . . . . . . . . . . Hacks Repelled . | . . . . . . . . . . . . . . . . . . . . Allies | -11 -10 -9 -9 -9 -8 -8 -7 -6 -5 -5 -5 -5 -4 -4 -4 -4 -4 -4 -3 -------- Run | Yrd Mat Mat Min Exi Min Mat Fac Fac Fac Upp Upp War Pro Fac Ext Cet Arc Hub Res Total Allies . | . . . . . . . . . . . . . . . . . . . . Largest Group . | . . . . . . . . . . . . . . . . . . . . Highest-Rated Group . | . . . . . . . . . . . . . . . . . . . . Highest-Rated Ally . | . . . . . . . . . . . . . . . . . . . . Total Orders 6 | . . . . . . . . . . . . . . . 2 . . . 4 EXPLORE 6 | . . . . . . . . . . . . . . . 2 . . . 4 Ally Attacks . | . . . . . . . . . . . . . . . . . . . . Total Damage . | . . . . . . . . . . . . . . . . . . . . Kills . | . . . . . . . . . . . . . . . . . . . . Allies Corrupted . | . . . . . . . . . . . . . . . . . . . . Allies Melted . | . . . . . . . . . . . . . . . . . . . . Intel | -11 -10 -9 -9 -9 -8 -8 -7 -6 -5 -5 -5 -5 -4 -4 -4 -4 -4 -4 -3 ------- Run | Yrd Mat Mat Min Exi Min Mat Fac Fac Fac Upp Upp War Pro Fac Ext Cet Arc Hub Res Active Infowar (turns) 8537 | 14 695 665 92 234 473 1277 1461 1156 394 124 356 673 71 213 344 . . . 295 Optics 952 | . . . . . . . . 952 . . . . . . . . . . . Sensors 2125 | . . . . . . 149 . 148 394 124 356 673 71 146 . . . . 64 IFF 44 | . . . . . . . . 44 . . . . . . . . . . . Terrain 176 | . . . . . . . . . . . . . . . . . . . 176 Structural 4945 | . 539 665 92 234 473 1277 1461 204 . . . . . . . . . . . Seismic 695 | 14 156 . . . . . . . . . . . . 197 328 . . . . Cloaking 73 | . . . . . . . . . . . . . . . 18 . . . 55 Robot Analysis Total 2 | . 1 . . . . 1 . . . . . . . . . . . . . Derelict Logs Recovered 3 | . . . . . . . . . . 1 2 . . . . . . . . Drone Launches 6 | . . . . . . . . . . . . . . . 2 . . . 4 Drone Recoveries 4 | . . . . . . . . . . . . . . . 2 . . . 2 Exploration | -11 -10 -9 -9 -9 -8 -8 -7 -6 -5 -5 -5 -5 -4 -4 -4 -4 -4 -4 -3 ------------- Run | Yrd Mat Mat Min Exi Min Mat Fac Fac Fac Upp Upp War Pro Fac Ext Cet Arc Hub Res Turns Passed 10737 | 182 750 665 92 234 473 1277 1959 1335 518 124 356 673 71 213 362 38 18 75 1322 Spaces Moved 10107 | 84 387 299 58 147 278 600 832 867 1026 314 908 1356 191 512 597 101 47 176 1327 Core 188 | 5 . . . . . . . 35 13 . . . . . . . . . 135 Treads 2626 | 79 387 299 58 147 278 600 686 92 . . . . . . . . . . . Legs . | . . . . . . . . . . . . . . . . . . . . Wheels 751 | . . . . . . . 146 264 . . . . . . . . . . 341 Hover 470 | . . . . . . . . 411 . . . . . . . . . . 59 Flight 6072 | . . . . . . . . 65 1013 314 908 1356 191 512 597 101 47 176 792 Fastest Speed 32 | 50 160 160 160 160 160 160 125 50 37 37 37 37 37 32 32 37 37 37 35 Average Speed 85 | 153 160 164 160 160 160 163 189 128 42 37 37 37 37 34 34 37 37 37 73 Slowest Speed 1250 | 160 160 240 160 160 160 245 245 1250 117 37 37 117 37 37 117 37 37 37 600 Overloaded Moves . | . . . . . . . . . . . . . . . . . . . . Propulsion Burnouts . | . . . . . . . . . . . . . . . . . . . . Robots Hopped 25 | . . . . . . . . . 1 . . . . 6 8 4 2 4 . Potential Cave-ins . | . . . . . . . . . . . . . . . . . . . . Cave-ins Triggered . | . . . . . . . . . . . . . . . . . . . . Exploration Rate (%) 41 | 5 46 31 12 50 67 49 29 33 23 42 59 92 36 15 61 60 64 18 39 Regions Visited 19 Branch Regions 11 Pre-discovered Areas 2 | . . . . 1 . . . . . 1 . . . . . . . . . Known Exits Taken 14 | . 1 1 . . . 1 . 1 1 1 1 1 1 1 1 1 1 1 . Unknown Exits Taken 5 | 1 . . 1 1 1 . 1 . . . . . . . . . . . . Scrap Searched 6 | . . . . . 1 . . . . 2 3 . . . . . . . . Spaces Dug 34 | . . 3 . . . 1 3 9 . . . 1 . 5 . . . . 12 Terrain Destroyed 254 | . . 24 . . 1 6 43 57 . . . 1 . 5 . . . . 117 Melee 30 | . . . . . . 1 2 9 . . . 1 . 5 . . . . 12 Projectile 49 | . . 8 . . 1 5 26 . . . . . . . . . . . 9 AOE 175 | . . 16 . . . . 15 48 . . . . . . . . . . 96 Terrain Rammed . | . . . . . . . . . . . . . . . . . . . . Walls Destroyed . | . . . . . . . . . . . . . . . . . . . . Machines Disabled . | . . . . . . . . . . . . . . . . . . . . Actions | -11 -10 -9 -9 -9 -8 -8 -7 -6 -5 -5 -5 -5 -4 -4 -4 -4 -4 -4 -3 --------- Run | Yrd Mat Mat Min Exi Min Mat Fac Fac Fac Upp Upp War Pro Fac Ext Cet Arc Hub Res Total 11477 | 110 461 386 57 146 293 782 1025 993 1101 320 927 1526 190 523 747 96 44 176 1574 Wait 647 | 3 25 30 . . 7 71 37 16 53 . 17 142 . . 103 . . . 143 Move 10039 | 83 386 298 57 146 277 599 831 866 1023 313 907 1355 190 500 580 92 42 167 1327 Hop 24 | . . . . . . . . . 1 . . . . 5 8 4 2 4 . Pick Up 78 | 5 9 1 . . 1 13 15 12 2 4 . 5 . 1 3 . . . 7 Fast Attach 71 | 6 . 2 . . . 3 6 7 12 1 1 6 . 4 2 . . 2 19 Attach 50 | 1 . 2 . . . 3 13 14 2 . . . . 2 3 . . 1 9 Detach 14 | . . . . . . . . 3 4 . 1 4 . . 2 . . . . Swap 43 | . 8 4 . . . 9 8 4 . 1 . . . 1 . . . 1 7 Drop 66 | . 5 3 . . 1 13 9 10 3 1 1 11 . 1 1 . . . 7 Fire 328 | 12 28 46 . . 7 63 101 47 1 . . 1 . . . . . . 22 Melee 60 | . . . . . . 2 2 14 . . . 2 . 9 . . . 1 30 Ram 3 | . . . . . . . . . . . . . . . . . . . 3 Kick . | . . . . . . . . . . . . . . . . . . . . Crush 9 | . . . . . . 6 3 . . . . . . . . . . . . Escape Stasis 45 | . . . . . . . . . . . . . . . 45 . . . . Rewire . | . . . . . . . . . . . . . . . . . . . . Trap . | . . . . . . . . . . . . . . . . . . . . Miscellaneous . | . . . . . . . . . . . . . . . . . . . . Route ------- -11/Scrapyard -10/Materials (discovered 3 exits: *Mat x3) -9/Materials (discovered 2 exits: *Mat / *Min) -9/Mines -9/Exiles -8/Mines -8/Materials (discovered 3 exits: *Fac x3) -7/Factory -6/Factory -5/Factory -5/Upper Caves -5/Upper Caves -5/Warlord -4/Proximity Caves -4/Factory (discovered 2 exits: *Upp / *Ext) -4/Extension (discovered 2 exits: *Res / *Cet) -4/Cetus -4/Archives -4/Hub_04(d) -3/Research History --------- Turn | Location | Event 7 | -11/Scrapyard | Discovered new exit (range 15) 183 | -11/Scrapyard | Entered Materials 207 | -10/Materials | Identified exit to Materials 304 | -10/Materials | Build established: Mutant 933 | -10/Materials | Entered another Materials area 933 | -9/Materials | Evolved 2 slots: Utility x1, Weapon x1 1315 | -9/Materials | Identified exit to Mines 1395 | -9/Materials | Discovered new exit (range 13) 1598 | -9/Materials | Entered Mines 1617 | -9/Mines | Build established: Gunner 1668 | -9/Mines | Assembled infested the area 1673 | -9/Mines | Assisted by a Guerilla fighting off Assembled 1683 | -9/Mines | Deemed a non-threat by the Exiles lab entrance 1683 | -9/Mines | Discovered new exit (range 5) 1690 | -9/Mines | Entered Exiles 1729 | -9/Exiles | Met 8R-AWN 1758 | -9/Exiles | Met EX-HEX 1828 | -9/Exiles | Met EX-DEC 1839 | -9/Exiles | Learned location of Zion (-6) 1906 | -9/Exiles | Discovered new exit (range 14) 1924 | -9/Exiles | Entered Mines 2386 | -8/Mines | Discovered new exit (range 8) 2397 | -8/Mines | Entered Materials 2397 | -8/Materials | Evolved 2 slots: Propulsion x1, Utility x1 3509 | -8/Materials | Build established: Mutant 3535 | -8/Materials | Central database locked down 3626 | -8/Materials | Identified exit to Factory 3674 | -8/Materials | Entered Factory 3674 | -7/Factory | Evolved 2 slots: Utility x2 4456 | -7/Factory | Found Powered Armor 4712 | -7/Factory | Build established: Gunner 4778 | -7/Factory | Garrison activated, responded to threat 5403 | -7/Factory | Lost 5 parts (2n2u1w) 5475 | -7/Factory | Discovered new exit (range 16) 5633 | -7/Factory | Entered another Factory area 5633 | -6/Factory | Evolved 2 slots: Propulsion x1, Utility x1 5872 | -6/Factory | Lost 9 parts (1p1n3u4w) 6133 | -6/Factory | Build established: Mutant 6485 | -6/Factory | Central database locked down 6792 | -6/Factory | Lost 3 parts (1n2u) 6827 | -6/Factory | Discovered new exit (range 16) 6844 | -6/Factory | Identified exit to Factory 6905 | -6/Factory | Core integrity fell below 50% 6953 | -6/Factory | Released all parts (5) 6958 | -6/Factory | Core integrity fell below 20% 6968 | -6/Factory | Entered another Factory area 6968 | -5/Factory | Evolved 2 slots: Utility x2 6983 | -5/Factory | Lost 4 parts (1p2n1w) 7481 | -5/Factory | Discovered new exit (range 10) 7486 | -5/Factory | Identified exit to Upper Caves 7486 | -5/Factory | Entered Upper Caves 7569 | -5/Upper Caves | Learned location of Armory (-4) 7607 | -5/Upper Caves | Discovered new exit (range 8) 7609 | -5/Upper Caves | Identified exit to Upper Caves 7610 | -5/Upper Caves | Entered another Upper Caves area 7637 | -5/Upper Caves | Learned Factory terminal intel 7640 | -5/Upper Caves | Encountered a Warlord checkpoint 7656 | -5/Upper Caves | Learned 4 Factory zone layouts 7882 | -5/Upper Caves | Spotted B-75 Beast 7961 | -5/Upper Caves | Discovered new exit (range 8) 7965 | -5/Upper Caves | Identified exit to Warlord 7966 | -5/Upper Caves | Entered Warlord 8027 | -5/Warlord | Visited the Vortex Lab 8030 | -5/Warlord | Found Prototype Energy Gun 8030 | -5/Warlord | Identified Vortex Shotgun 8034 | -5/Warlord | Found Prototype Energy Gun 8034 | -5/Warlord | Identified Vortex Rail 8038 | -5/Warlord | Found Vortex Rail 8041 | -5/Warlord | Warlord's base attacked by MAIN.C 8060 | -5/Warlord | Found Prototype Device 8060 | -5/Warlord | Identified Minesniffer Drone Bay 8184 | -5/Warlord | Met Warlord 8301 | -5/Warlord | Warlord forces counterattacked 8394 | -5/Warlord | Spotted Striker 8423 | -5/Warlord | Spotted Executioner 8467 | -5/Warlord | Lost 16 allies 8490 | -5/Warlord | Spotted Executioner 8499 | -5/Warlord | P-70 Sage assimilated allied 8O-D8Z(M) 8509 | -5/Warlord | P-70 Sage assimilated allied SG-CAY(b) 8541 | -5/Warlord | Lost 14 allies 8615 | -5/Warlord | Opened side exit 8626 | -5/Warlord | Spotted Striker 8636 | -5/Warlord | Discovered new exit (range 9) 8639 | -5/Warlord | Identified exit to Proximity Caves 8639 | -5/Warlord | Entered Proximity Caves 8667 | -4/Proximity Caves | Spotted B-86 Titan 8706 | -4/Proximity Caves | Discovered new exit (range 11) 8709 | -4/Proximity Caves | Identified exit to Factory 8710 | -4/Proximity Caves | Entered Factory 8710 | -4/Factory | Evolved 2 slots: Propulsion x1, Utility x1 8712 | -4/Factory | Loaded intel: 28 terminal locations 8772 | -4/Factory | Found Prototype Processor 8772 | -4/Factory | Identified Exp. Signal Interpreter 8862 | -4/Factory | Central database locked down 8866 | -4/Factory | Discovered new exit (range 7) 8867 | -4/Factory | Identified exit to Upper Caves 8922 | -4/Factory | Discovered new exit (range 5) 8923 | -4/Factory | Identified exit to Extension 8923 | -4/Factory | Entered Extension 9134 | -4/Extension | Build established: Sprinter 9207 | -4/Extension | Spotted B-86 Titan 9209 | -4/Extension | Spotted B-86 Titan 9242 | -4/Extension | Discovered new exit (range 15) 9243 | -4/Extension | Discovered new exit (range 15) 9246 | -4/Extension | Lost 3 parts (1n2u) 9283 | -4/Extension | Identified exit to Cetus 9285 | -4/Extension | Entered Cetus 9290 | -4/Cetus | Spotted Cetus Guard 9291 | -4/Cetus | Spotted Cetus Guard 9291 | -4/Cetus | Spotted Cetus Guard 9293 | -4/Cetus | Spotted Cetus Guard 9317 | -4/Cetus | Discovered new exit (range 15) 9322 | -4/Cetus | Identified exit to Archives 9323 | -4/Cetus | Entered Archives 9334 | -4/Archives | Unable to access archive contents 9335 | -4/Archives | Discovered new exit (range 16) 9340 | -4/Archives | Identified exit to Hub_04(d) 9341 | -4/Archives | Entered Hub_04(d) 9363 | -4/Hub_04(d) | Lost 3 parts (1p2u) 9413 | -4/Hub_04(d) | Discovered new exit (range 5) 9415 | -4/Hub_04(d) | Identified exit to Research 9416 | -4/Hub_04(d) | Entered Research 9416 | -3/Research | Evolved 2 slots: Utility x2 9450 | -3/Research | Central database locked down 9518 | -3/Research | Spotted B-86 Titan 9543 | -3/Research | Spotted B-86 Titan 9666 | -3/Research | Build established: Hacker-Mutant 9947 | -3/Research | Lost 4 parts (1p1n2u) 9977 | -3/Research | System corruption reached 10% 10013 | -3/Research | Lost 6 parts (2n2u2w) 10423 | -3/Research | Garrison activated, responded to threat 10488 | -3/Research | Lost 7 parts (1p4u2w) 10665 | -3/Research | Core integrity fell below 50% 10695 | -3/Research | Core integrity fell below 20% 10724 | -3/Research | Lost 13 parts (1p5n3u4w) 10738 | -3/Research | Destroyed by H-77 Assassin with Coil Gun Last Messages --------------- 10690_ Centrium Wheel destroyed. 10691_ Slammed into G-67 Veteran. 10691_ Imp. Gyrokinetic Inverter destroyed. 10692_ Quantum Rifle destroyed. 10693_ Lgt. Antimatter Reactor destroyed. 10693_ Critical hit (Burn: +37). 10694_ Slammed into G-67 Veteran. 10708_ NXP6S/PSPSWYEONGM TAC9>DXL9QADEWJ0 NDB 10711_ Wave Intensifier disabled. 10714_ K-01 Serf cleans the Terminal. 10716_ Triggered Alarm Trap. 10716_ An alarm sounds. 10716_ ALERT: Alarm triggered, dispatching investigation squad. 10716_ U-05 Engineer lays Concrete. 10717_ K-01 Serf cleans the Terminal. 10722_ U-05 Engineer lays Concrete. 10723_ K-01 Serf cleans the Terminal. 10736_ Slug penetrates Wall. 10736_ Penetrated by Slug. 10738_ Slug penetrates Wall. Map ----- +----------------------------------------------------+ | ???????????# #??# #????? | | ???????????# """"" #??# #????? | | ???????????# """"" #??# #????? | | ??#######??# """ """?" ???#+#+#????? | | ??# =?# """ ? ????????????? | | ??# ?# "" ?? ????????????? | | ??# # """ ??? ?????????????? | | ??# # """ """""?????????????????? | | ??# + """ """???????????????????? | | ??# # """ ""????????????????????? | | ??# ] # ?????????????????????? | | ??# ?# ?????????????????????? | | ??# ?# ?????????????????????? | | ??########## """ ?????????????????????? | | ?????????#"" """ "??????????????????????? | | ?????????#"" """ "??????????????????????? | | ?????????#"" """ ##########????????????????? | | ?????????#T """ # #????????????????? | | ?????????#"" """ # #????????????????? | | ?????????#"" """ # #????????????????? | | ?????????#"" # #????????????????? | | ?????????### # """ #????????????????? | | ???????????# + """ #????????????????? | | ???????????# #p """ #????????????????? | | ???????????# # #????????????????? | | ????######?# # @ #????????????????? | | ??? """ ?# ##########????????????????? | | ?#? """ # #?????????????????????????? | | ?# """ # #?????????????????????????? | | ?# + #?????????????????????????? | | ?# # ########?????????????????????????? | | ?# # #????????????????????????????????? | | ?# ?# #????????????????????????????????? | | ?# ?# #????????????????????????????????? | | ?########??# #????????????????????????????????? | | ???????????# #????????????????????????????????? | | ???????????# /????????????????????????????????? | | ???????????# # ???????????????????????????????? | | ???????????# # ??????????????????????????????? | | ???????????# #? ??????????????????????????????? | | ???????????# #? "?????????????????????????????? | | ???????????# #??##????????????????????????????? | | ???????????# #????????????????????????????????? | | ???????????# #????????????????????????????????? | | ???????????# #????????????????????????????????? | | ???????????? #????????????????????????????????? | | ???????????? ?????????????????????????????????? | | ?????????????????????????????????????????????????? | | ?????????????????????????????????????????????????? | | ?????????????????????????????????????????????????? | +----------------------------------------------------+ Best States ------------- Heat Dissipation 65 Energy Generation 24 Energy Capacity 325 Matter Stores 300 Matter Capacity 300 Sight Range 22 Robot Scan Range 16 Terrain Scan Range 16 Terrain Scan Density 10 Cloak Strength 3 Power Amplification 20 Base Temperature (-) 100 Armor Coverage 550 Resistance: KI 20 Resistance: TH 10 Propulsion Shielding 66 Evasion (%) 75 Targeting Accuracy 8 Melee Accuracy 8 Recoil Reduction 7 Offensive Hacking 10 Defensive Hacking 30 Item Schematics ----------------- None Robot Schematics ------------------ None Fabricated ------------ Nothing Repaired ---------- Nothing Studied --------- Katana | -8/Materials | Hacked Hvy. Assault Cannon | -8/Materials | Hacked Adv. Assault Cannon | -7/Factory | Hacked Gravmag System | -6/Factory | Hacked Cesium-ion Thruster | -4/Factory | Hacked Nuclear Pulse Array | -3/Research | Hacked Force Lance | -3/Research | Hacked Lance | -3/Research | Hacked Alien Tech Used ----------------- None Achievements -------------- Botjacking Construction Begets Destruction DIY Cooler Plot Armor Challenges ------------ None Game ------ Seed ReactionAdvancedRay Manual? 0 Play Time 04:12:49 Cumulative 154.5 hours Start 2025.11.07 @ 19:01:32 End 2025.11.11 @ 19:22:23 Sessions 13 Manual Loads 0 Difficulty Rogue Special Mode None Game No. 164 Rogue 164 Adventurer 0 Explorer 0 Win Type - Total 0 Types 0/0/0/0/0/0/0/0/0/0 Lore% 55 Gallery% 47 Achievement% 31 Wizard Run 0 Options --------- Layout 0 ASCII 0 Keyboard 0 Movement Arrows Keybinds 0 Fullscreen 1 Font 20/SmallcapsGlow Map View 66x50 Zoom Use 2% Tactical HUD 1 Map Filters NONE Filters NONE Steam 1 RUN: 5fc57743-e201-4563-9246-a017102e46c0